[Event "Titled Tuesday Blitz June 13 Early 2023"]
[White "Liu, Kelsey"]
[Black "Koridze, Lile"]
[WhiteFideId "30944481"]
[BlackFideId "13612514"]
[WhiteElo "2247"]
[BlackElo "2047"]
[Result "1-0"]
[Round "10"]
[TimeControl "180+2"]
[Date "2023.06.13"]
[WhiteClock "0:02:13"]
[BlackClock "0:02:30"]
[Board "137"]

1. e4 {[%clk 0:02:56]}  c5 {[%clk 0:02:59]} 2. Nf3 {[%clk 0:02:56]}  d6 {[%clk 0:02:59]} 3. Nc3 {[%clk 0:02:56]}  Nf6 {[%clk 0:02:58]} 4. e5 {[%clk 0:02:56]}  dxe5 {[%clk 0:02:59]} 5. Nxe5 {[%clk 0:02:57]}  a6 {[%clk 0:02:58]} 6. a4 {[%clk 0:02:57]}  Qc7 {[%clk 0:02:57]} 7. Nc4 {[%clk 0:02:56]}  e6 {[%clk 0:02:56]} 8. d3 {[%clk 0:02:53]}  b6 {[%clk 0:02:54]} 9. Qf3 {[%clk 0:02:46]}  Bb7 {[%clk 0:02:54]} 10. Bf4 {[%clk 0:02:47]}  Qd8 {[%clk 0:02:53]} 11. Qxb7 {[%clk 0:02:46]}  Nbd7 {[%clk 0:02:40]} 12. Bc7 {[%clk 0:02:32]}  Qc8 {[%clk 0:02:39]} 13. Qxc8+ {[%clk 0:02:29]}  Rxc8 {[%clk 0:02:40]} 14. Bxb6 {[%clk 0:02:30]}  Nd5 {[%clk 0:02:40]} 15. a5 {[%clk 0:02:26]}  N7f6 {[%clk 0:02:38]} 16. Be2 {[%clk 0:02:24]}  Be7 {[%clk 0:02:35]} 17. O-O {[%clk 0:02:24]}  O-O {[%clk 0:02:36]} 18. Bf3 {[%clk 0:02:24]}  Nxc3 {[%clk 0:02:34]} 19. bxc3 {[%clk 0:02:25]}  Nd5 {[%clk 0:02:35]} 20. Bxd5 {[%clk 0:02:17]}  exd5 {[%clk 0:02:35]} 21. Ne3 {[%clk 0:02:18]}  d4 {[%clk 0:02:33]} 22. cxd4 {[%clk 0:02:17]}  Bf6 {[%clk 0:02:30]} 23. Bxc5 {[%clk 0:02:13]} 1-0


[Site "https://www.chess.com"]

[Event "Titled Tuesday Blitz June 13 Early 2023"]
[White "Philippe, Guillaume"]
[Black "Tarasova, Viktoriya"]
[WhiteFideId "36048763"]
[BlackFideId "4175840"]
[WhiteElo "2387"]
[BlackElo "2182"]
[Result "1/2-1/2"]
[Round "10"]
[TimeControl "180+2"]
[Date "2023.06.13"]
[WhiteClock "0:00:26"]
[BlackClock "0:00:23"]
[Board "140"]

1. e4 {[%clk 0:03:00]}  e5 {[%clk 0:02:58]} 2. Nf3 {[%clk 0:03:01]}  Nc6 {[%clk 0:02:58]} 3. Bb5 {[%clk 0:03:01]}  Nf6 {[%clk 0:02:58]} 4. O-O {[%clk 0:03:01]}  Nxe4 {[%clk 0:02:54]} 5. Re1 {[%clk 0:02:48]}  Nd6 {[%clk 0:02:53]} 6. Nxe5 {[%clk 0:02:36]}  Be7 {[%clk 0:02:41]} 7. Bf1 {[%clk 0:02:34]}  Nxe5 {[%clk 0:02:27]} 8. Rxe5 {[%clk 0:02:35]}  O-O {[%clk 0:02:27]} 9. d4 {[%clk 0:02:32]}  Bf6 {[%clk 0:02:28]} 10. Re1 {[%clk 0:02:31]}  Nf5 {[%clk 0:02:28]} 11. c3 {[%clk 0:02:30]}  d5 {[%clk 0:02:28]} 12. Bf4 {[%clk 0:02:28]}  c6 {[%clk 0:02:28]} 13. Nd2 {[%clk 0:02:28]}  Re8 {[%clk 0:02:27]} 14. Qc2 {[%clk 0:02:26]}  Be6 {[%clk 0:02:25]} 15. Bd3 {[%clk 0:02:26]}  g6 {[%clk 0:02:24]} 16. Re2 {[%clk 0:02:25]}  Bg7 {[%clk 0:02:17]} 17. Rae1 {[%clk 0:02:24]}  Qd7 {[%clk 0:02:17]} 18. Nf3 {[%clk 0:02:23]}  Rad8 {[%clk 0:02:11]} 19. Ne5 {[%clk 0:02:22]}  Qc8 {[%clk 0:02:11]} 20. h3 {[%clk 0:02:18]}  Nd6 {[%clk 0:02:05]} 21. b3 {[%clk 0:02:11]}  a6 {[%clk 0:01:46]} 22. Nf3 {[%clk 0:02:03]}  c5 {[%clk 0:01:42]} 23. dxc5 {[%clk 0:01:54]}  Qxc5 {[%clk 0:01:41]} 24. Be3 {[%clk 0:01:51]}  Qxc3 {[%clk 0:01:39]} 25. Qxc3 {[%clk 0:01:46]}  Bxc3 {[%clk 0:01:38]} 26. Rc1 {[%clk 0:01:47]}  Rc8 {[%clk 0:01:35]} 27. Bf4 {[%clk 0:01:43]}  Nf5 {[%clk 0:01:31]} 28. Bxf5 {[%clk 0:01:33]}  gxf5 {[%clk 0:01:30]} 29. Rec2 {[%clk 0:01:20]}  Bf6 {[%clk 0:01:27]} 30. Ne5 {[%clk 0:01:17]}  Rxc2 {[%clk 0:01:24]} 31. Rxc2 {[%clk 0:01:17]}  Rc8 {[%clk 0:01:24]} 32. Rxc8+ {[%clk 0:01:13]}  Bxc8 {[%clk 0:01:24]} 33. Kf1 {[%clk 0:01:14]}  Be7 {[%clk 0:01:06]} 34. Ke2 {[%clk 0:01:13]}  f6 {[%clk 0:01:06]} 35. Nf3 {[%clk 0:01:07]}  Bd7 {[%clk 0:01:02]} 36. Nd4 {[%clk 0:01:06]}  Bc5 {[%clk 0:00:59]} 37. Kd3 {[%clk 0:01:04]}  Kf7 {[%clk 0:00:59]} 38. a4 {[%clk 0:01:03]}  Bb4 {[%clk 0:00:52]} 39. f3 {[%clk 0:00:59]}  Ke7 {[%clk 0:00:49]} 40. Bg3 {[%clk 0:00:54]}  Bc5 {[%clk 0:00:39]} 41. Bf4 {[%clk 0:00:54]}  Bb4 {[%clk 0:00:38]} 42. Bg3 {[%clk 0:00:52]}  Bd6 {[%clk 0:00:35]} 43. Bxd6+ {[%clk 0:00:51]}  Kxd6 {[%clk 0:00:35]} 44. f4 {[%clk 0:00:51]}  Kc5 {[%clk 0:00:36]} 45. Kc3 {[%clk 0:00:48]}  b5 {[%clk 0:00:36]} 46. b4+ {[%clk 0:00:45]}  Kd6 {[%clk 0:00:35]} 47. a5 {[%clk 0:00:45]}  Bc8 {[%clk 0:00:34]} 48. Kd3 {[%clk 0:00:41]}  Ke7 {[%clk 0:00:34]} 49. Nb3 {[%clk 0:00:37]}  Kd6 {[%clk 0:00:34]} 50. Kd4 {[%clk 0:00:36]}  Kc6 {[%clk 0:00:33]} 51. Nd2 {[%clk 0:00:34]}  Kd6 {[%clk 0:00:33]} 52. Nf1 {[%clk 0:00:34]}  Bd7 {[%clk 0:00:28]} 53. Ne3 {[%clk 0:00:32]}  Be6 {[%clk 0:00:28]} 54. Nf1 {[%clk 0:00:32]}  Bd7 {[%clk 0:00:28]} 55. Ng3 {[%clk 0:00:33]}  Bc8 {[%clk 0:00:23]} 56. Nh5 {[%clk 0:00:31]}  Ke6 {[%clk 0:00:23]} 57. Ng3 {[%clk 0:00:26]}  Kd6 {[%clk 0:00:23]} 58. Nf1 {[%clk 0:00:26]}  Bd7 {[%clk 0:00:23]} 1/2-1/2


[Site "https://www.chess.com"]

[Event "Titled Tuesday Blitz June 13 Early 2023"]
[White "Blackwhite017"]
[Black "Yonal, Timur"]
[BlackFideId "44115725"]
[WhiteElo "2142"]
[BlackElo "1966"]
[Result "0-1"]
[Round "10"]
[TimeControl "180+2"]
[Date "2023.06.13"]
[WhiteClock "0:00:00"]
[BlackClock "0:01:39"]
[Board "142"]

1. e4 {[%clk 0:02:57]}  c5 {[%clk 0:02:59]} 2. Nf3 {[%clk 0:02:58]}  d6 {[%clk 0:02:59]} 3. d4 {[%clk 0:02:58]}  cxd4 {[%clk 0:03:00]} 4. Nxd4 {[%clk 0:02:59]}  Nf6 {[%clk 0:03:00]} 5. Nc3 {[%clk 0:02:58]}  a6 {[%clk 0:03:01]} 6. Bg5 {[%clk 0:02:56]}  e6 {[%clk 0:03:01]} 7. f4 {[%clk 0:02:57]}  Nbd7 {[%clk 0:03:01]} 8. Qf3 {[%clk 0:02:57]}  Qc7 {[%clk 0:03:02]} 9. O-O-O {[%clk 0:02:57]}  b5 {[%clk 0:03:02]} 10. g4 {[%clk 0:02:55]}  Bb7 {[%clk 0:03:01]} 11. Bd3 {[%clk 0:02:54]}  Rc8 {[%clk 0:02:58]} 12. Rhe1 {[%clk 0:02:35]}  Nc5 {[%clk 0:02:58]} 13. Bxf6 {[%clk 0:02:23]}  gxf6 {[%clk 0:02:59]} 14. Kb1 {[%clk 0:02:22]}  b4 {[%clk 0:02:52]} 15. Nce2 {[%clk 0:02:14]}  Be7 {[%clk 0:02:45]} 16. Ng3 {[%clk 0:01:58]}  a5 {[%clk 0:02:26]} 17. Qe2 {[%clk 0:01:38]}  Nxd3 {[%clk 0:02:22]} 18. cxd3 {[%clk 0:01:35]}  Qb6 {[%clk 0:02:22]} 19. Nf3 {[%clk 0:01:28]}  a4 {[%clk 0:02:19]} 20. d4 {[%clk 0:00:48]}  b3 {[%clk 0:02:08]} 21. a3 {[%clk 0:00:44]}  Rc2 {[%clk 0:02:06]} 22. Rd2 {[%clk 0:00:35]}  Rxd2 {[%clk 0:02:02]} 23. Qxd2 {[%clk 0:00:27]}  Kd7 {[%clk 0:02:02]} 24. e5 {[%clk 0:00:19]}  fxe5 {[%clk 0:02:00]} 25. dxe5 {[%clk 0:00:19]}  d5 {[%clk 0:02:00]} 26. Nd4 {[%clk 0:00:17]}  Rc8 {[%clk 0:02:00]} 27. Nge2 {[%clk 0:00:15]}  Ba6 {[%clk 0:01:59]} 28. Rc1 {[%clk 0:00:14]}  Rxc1+ {[%clk 0:01:57]} 29. Kxc1 {[%clk 0:00:14]}  Bc5 {[%clk 0:01:54]} 30. Qc3 {[%clk 0:00:08]}  Bxe2 {[%clk 0:01:42]} 31. Nxe2 {[%clk 0:00:09]}  Be3+ {[%clk 0:01:42]} 32. Kd1 {[%clk 0:00:09]}  d4 {[%clk 0:01:42]} 33. Qc4 {[%clk 0:00:05]}  Qc6 {[%clk 0:01:38]} 34. Qxc6+ {[%clk 0:00:05]}  Kxc6 {[%clk 0:01:39]} 35. f5 {[%clk 0:00:02]}  Kd5 {[%clk 0:01:39]} 36. fxe6 {[%clk 0:00:00]}  Kxe6 {[%clk 0:01:39]} 0-1


[Site "https://www.chess.com"]

[Event "Titled Tuesday Blitz June 13 Early 2023"]
[White "Sarkar, Justin"]
[Black "Fabris, Alberto"]
[WhiteFideId "2010011"]
[BlackFideId "801348"]
[WhiteElo "2151"]
[BlackElo "2178"]
[Result "1-0"]
[Round "10"]
[TimeControl "180+2"]
[Date "2023.06.13"]
[WhiteClock "0:00:08"]
[BlackClock "0:00:13"]
[Board "145"]

1. d4 {[%clk 0:02:41]}  Nf6 {[%clk 0:02:59]} 2. c4 {[%clk 0:02:39]}  e6 {[%clk 0:02:59]} 3. Nc3 {[%clk 0:02:36]}  Bb4 {[%clk 0:02:59]} 4. e3 {[%clk 0:02:35]}  b6 {[%clk 0:02:58]} 5. Bd3 {[%clk 0:02:34]}  Bb7 {[%clk 0:02:58]} 6. Ne2 {[%clk 0:02:33]}  O-O {[%clk 0:02:57]} 7. O-O {[%clk 0:02:32]}  d5 {[%clk 0:02:52]} 8. a3 {[%clk 0:02:31]}  Be7 {[%clk 0:02:50]} 9. cxd5 {[%clk 0:02:21]}  exd5 {[%clk 0:02:49]} 10. b4 {[%clk 0:02:19]}  c5 {[%clk 0:02:46]} 11. bxc5 {[%clk 0:02:16]}  bxc5 {[%clk 0:02:46]} 12. Rb1 {[%clk 0:02:13]}  Bc6 {[%clk 0:02:41]} 13. dxc5 {[%clk 0:02:11]}  Bxc5 {[%clk 0:02:40]} 14. Qc2 {[%clk 0:02:00]}  Nbd7 {[%clk 0:02:37]} 15. Nd4 {[%clk 0:01:53]}  Qc7 {[%clk 0:02:24]} 16. Nxc6 {[%clk 0:01:44]}  Qxc6 {[%clk 0:02:24]} 17. Na4 {[%clk 0:01:37]}  Rfc8 {[%clk 0:02:09]} 18. Nxc5 {[%clk 0:01:22]}  Qxc5 {[%clk 0:02:04]} 19. Qxc5 {[%clk 0:01:13]}  Nxc5 {[%clk 0:02:03]} 20. Bf5 {[%clk 0:01:12]}  Rcb8 {[%clk 0:02:02]} 21. Bb2 {[%clk 0:01:10]}  Nfe4 {[%clk 0:01:57]} 22. Bd4 {[%clk 0:00:47]}  Nd2 {[%clk 0:01:20]} 23. Bxc5 {[%clk 0:00:29]}  Nxb1 {[%clk 0:01:16]} 24. Bxb1 {[%clk 0:00:23]}  Rb2 {[%clk 0:01:04]} 25. Bd4 {[%clk 0:00:21]}  Rb5 {[%clk 0:00:57]} 26. Rd1 {[%clk 0:00:16]}  a5 {[%clk 0:00:56]} 27. Kf1 {[%clk 0:00:15]}  Rab8 {[%clk 0:00:55]} 28. Bd3 {[%clk 0:00:13]}  Rb3 {[%clk 0:00:53]} 29. a4 {[%clk 0:00:13]}  R8b4 {[%clk 0:00:48]} 30. Bb5 {[%clk 0:00:12]}  Rb1 {[%clk 0:00:47]} 31. Rxb1 {[%clk 0:00:11]}  Rxb1+ {[%clk 0:00:47]} 32. Ke2 {[%clk 0:00:11]}  g5 {[%clk 0:00:37]} 33. Bc3 {[%clk 0:00:10]}  Rg1 {[%clk 0:00:32]} 34. g3 {[%clk 0:00:09]}  Rh1 {[%clk 0:00:31]} 35. Bxa5 {[%clk 0:00:08]}  Rxh2 {[%clk 0:00:31]} 36. Bb6 {[%clk 0:00:08]}  Rh1 {[%clk 0:00:28]} 37. a5 {[%clk 0:00:08]}  Ra1 {[%clk 0:00:28]} 38. a6 {[%clk 0:00:08]}  h5 {[%clk 0:00:27]} 39. a7 {[%clk 0:00:08]}  h4 {[%clk 0:00:27]} 40. gxh4 {[%clk 0:00:08]}  gxh4 {[%clk 0:00:27]} 41. Bc6 {[%clk 0:00:08]}  h3 {[%clk 0:00:13]} 42. Bxd5 {[%clk 0:00:08]} 1-0


[Site "https://www.chess.com"]

[Event "Titled Tuesday Blitz June 13 Early 2023"]
[White "Tuleyeva-Aketayeva, Dana"]
[Black "Nikulina, Alena"]
[WhiteFideId "13701932"]
[BlackFideId "4172051"]
[WhiteElo "2030"]
[BlackElo "1608"]
[Result "1/2-1/2"]
[Round "10"]
[TimeControl "180+2"]
[Date "2023.06.13"]
[WhiteClock "0:00:55"]
[BlackClock "0:00:09"]
[Board "146"]

1. d4 {[%clk 0:03:00]}  d5 {[%clk 0:02:58]} 2. Nf3 {[%clk 0:03:01]}  Nf6 {[%clk 0:02:58]} 3. g3 {[%clk 0:03:01]}  e6 {[%clk 0:02:53]} 4. Bg2 {[%clk 0:03:02]}  c6 {[%clk 0:02:50]} 5. O-O {[%clk 0:03:02]}  Nbd7 {[%clk 0:02:48]} 6. c4 {[%clk 0:03:03]}  b6 {[%clk 0:02:47]} 7. Nc3 {[%clk 0:03:04]}  Bb7 {[%clk 0:02:48]} 8. Nd2 {[%clk 0:03:02]}  Be7 {[%clk 0:02:41]} 9. e4 {[%clk 0:03:02]}  dxe4 {[%clk 0:02:41]} 10. Ndxe4 {[%clk 0:03:03]}  Nxe4 {[%clk 0:02:40]} 11. Nxe4 {[%clk 0:03:04]}  Nf6 {[%clk 0:02:41]} 12. Nc3 {[%clk 0:03:04]}  O-O {[%clk 0:02:38]} 13. Be3 {[%clk 0:02:55]}  Qd7 {[%clk 0:02:36]} 14. Qb3 {[%clk 0:02:51]}  Rfd8 {[%clk 0:02:17]} 15. Rfd1 {[%clk 0:02:49]}  Ng4 {[%clk 0:02:13]} 16. Bf4 {[%clk 0:02:43]}  g5 {[%clk 0:02:04]} 17. Be3 {[%clk 0:02:38]}  Nxe3 {[%clk 0:01:56]} 18. fxe3 {[%clk 0:02:39]}  Qc7 {[%clk 0:01:34]} 19. Rac1 {[%clk 0:02:36]}  Rac8 {[%clk 0:01:29]} 20. d5 {[%clk 0:02:11]}  Qe5 {[%clk 0:01:17]} 21. e4 {[%clk 0:01:56]}  cxd5 {[%clk 0:01:00]} 22. exd5 {[%clk 0:01:54]}  Bc5+ {[%clk 0:00:54]} 23. Kh1 {[%clk 0:01:53]}  h6 {[%clk 0:00:36]} 24. a3 {[%clk 0:01:39]}  Be3 {[%clk 0:00:29]} 25. Rb1 {[%clk 0:01:35]}  Ba6 {[%clk 0:00:28]} 26. Ne4 {[%clk 0:01:26]}  Bxc4 {[%clk 0:00:24]} 27. Qxe3 {[%clk 0:01:25]}  Bxd5 {[%clk 0:00:21]} 28. Qc3 {[%clk 0:01:14]}  Rxc3 {[%clk 0:00:18]} 29. bxc3 {[%clk 0:01:13]}  Bxe4 {[%clk 0:00:18]} 30. Rxd8+ {[%clk 0:01:13]}  Kg7 {[%clk 0:00:17]} 31. Rbd1 {[%clk 0:01:10]}  Bxg2+ {[%clk 0:00:15]} 32. Kxg2 {[%clk 0:01:11]}  Qxc3 {[%clk 0:00:15]} 33. R8d7 {[%clk 0:01:09]}  Qxa3 {[%clk 0:00:14]} 34. Rf1 {[%clk 0:01:07]}  Qa2+ {[%clk 0:00:12]} 35. Rf2 {[%clk 0:01:06]}  Qc4 {[%clk 0:00:07]} 36. Rfxf7+ {[%clk 0:01:06]}  Kg6 {[%clk 0:00:08]} 37. Rg7+ {[%clk 0:01:06]}  Kf5 {[%clk 0:00:08]} 38. Rgf7+ {[%clk 0:01:00]}  Ke5 {[%clk 0:00:09]} 39. Rxa7 {[%clk 0:00:56]}  Qe2+ {[%clk 0:00:09]} 40. Rf2 {[%clk 0:00:55]}  Qe4+ {[%clk 0:00:09]} 41. Kg1 {[%clk 0:00:54]}  Qe1+ {[%clk 0:00:09]} 42. Kg2 {[%clk 0:00:54]}  Qe4+ {[%clk 0:00:09]} 43. Kg1 {[%clk 0:00:54]}  Qe1+ {[%clk 0:00:09]} 44. Kg2 {[%clk 0:00:55]}  Qe4+ {[%clk 0:00:09]} 1/2-1/2


[Site "https://www.chess.com"]

[Event "Titled Tuesday Blitz June 13 Early 2023"]
[White "Hartikainen, Jarmo"]
[Black "De Souza, Cristiano Gomes"]
[WhiteFideId "503134"]
[BlackFideId "2151758"]
[WhiteElo "2122"]
[BlackElo "2068"]
[Result "0-1"]
[Round "10"]
[TimeControl "180+2"]
[Date "2023.06.13"]
[WhiteClock "0:00:00"]
[BlackClock "0:01:59"]
[Board "147"]

1. e4 {[%clk 0:03:00]}  c5 {[%clk 0:02:53]} 2. c3 {[%clk 0:03:00]}  d6 {[%clk 0:02:53]} 3. d4 {[%clk 0:03:00]}  Nf6 {[%clk 0:02:53]} 4. Bd3 {[%clk 0:02:59]}  Qc7 {[%clk 0:02:52]} 5. f3 {[%clk 0:02:49]}  Nbd7 {[%clk 0:02:51]} 6. Be3 {[%clk 0:02:48]}  e5 {[%clk 0:02:51]} 7. Ne2 {[%clk 0:02:43]}  Be7 {[%clk 0:02:50]} 8. O-O {[%clk 0:02:42]}  O-O {[%clk 0:02:49]} 9. Nd2 {[%clk 0:02:29]}  b6 {[%clk 0:02:48]} 10. d5 {[%clk 0:02:19]}  a6 {[%clk 0:02:46]} 11. a4 {[%clk 0:02:16]}  Bb7 {[%clk 0:02:46]} 12. Ng3 {[%clk 0:02:07]}  g6 {[%clk 0:02:43]} 13. Bh6 {[%clk 0:01:59]}  Rfb8 {[%clk 0:02:42]} 14. Qe2 {[%clk 0:01:57]}  Bf8 {[%clk 0:02:41]} 15. Bxf8 {[%clk 0:01:54]}  Kxf8 {[%clk 0:02:41]} 16. h4 {[%clk 0:01:46]}  Kg7 {[%clk 0:02:42]} 17. h5 {[%clk 0:01:42]}  Nf8 {[%clk 0:02:42]} 18. Qe3 {[%clk 0:01:33]}  Bc8 {[%clk 0:02:41]} 19. Kf2 {[%clk 0:01:26]}  Bd7 {[%clk 0:02:40]} 20. Rh1 {[%clk 0:01:24]}  Kg8 {[%clk 0:02:35]} 21. Qg5 {[%clk 0:01:11]}  Qd8 {[%clk 0:02:32]} 22. hxg6 {[%clk 0:01:07]}  Ng4+ {[%clk 0:02:29]} 23. Qxg4 {[%clk 0:01:01]}  Bxg4 {[%clk 0:02:27]} 24. gxf7+ {[%clk 0:00:54]}  Kxf7 {[%clk 0:02:26]} 25. fxg4 {[%clk 0:00:54]}  Kg7 {[%clk 0:02:26]} 26. Nf5+ {[%clk 0:00:54]}  Kg8 {[%clk 0:02:25]} 27. Nf3 {[%clk 0:00:54]}  Ng6 {[%clk 0:02:25]} 28. Rh5 {[%clk 0:00:49]}  b5 {[%clk 0:02:25]} 29. Rah1 {[%clk 0:00:47]}  Rb7 {[%clk 0:02:25]} 30. Ng5 {[%clk 0:00:44]}  Raa7 {[%clk 0:02:24]} 31. Ne6 {[%clk 0:00:44]}  Qf6 {[%clk 0:02:19]} 32. Kg3 {[%clk 0:00:32]}  Nf4 {[%clk 0:02:17]} 33. Rg5+ {[%clk 0:00:22]}  Kh8 {[%clk 0:02:15]} 34. Bf1 {[%clk 0:00:17]}  Nxe6 {[%clk 0:02:14]} 35. dxe6 {[%clk 0:00:16]}  Qxe6 {[%clk 0:02:15]} 36. Rgh5 {[%clk 0:00:11]}  bxa4 {[%clk 0:02:12]} 37. g5 {[%clk 0:00:10]}  d5 {[%clk 0:02:09]} 38. Rh6 {[%clk 0:00:10]}  Qg8 {[%clk 0:02:05]} 39. g6 {[%clk 0:00:10]}  dxe4 {[%clk 0:02:03]} 40. g7+ {[%clk 0:00:10]}  Rxg7+ {[%clk 0:02:03]} 41. Nxg7 {[%clk 0:00:10]}  Rxg7+ {[%clk 0:02:03]} 42. Kf2 {[%clk 0:00:11]}  Qf7+ {[%clk 0:02:02]} 43. Ke1 {[%clk 0:00:08]}  Qf4 {[%clk 0:02:02]} 44. Be2 {[%clk 0:00:07]}  Qc1+ {[%clk 0:02:02]} 45. Bd1 {[%clk 0:00:07]}  Qxb2 {[%clk 0:02:01]} 46. g4 {[%clk 0:00:06]}  Qxc3+ {[%clk 0:02:01]} 47. Ke2 {[%clk 0:00:06]}  Qd3+ {[%clk 0:02:01]} 48. Ke1 {[%clk 0:00:06]}  Rf7 {[%clk 0:02:02]} 49. Be2 {[%clk 0:00:06]}  Qb1+ {[%clk 0:02:01]} 50. Kd2 {[%clk 0:00:06]}  Qb2+ {[%clk 0:02:01]} 51. Ke1 {[%clk 0:00:06]}  Qc1+ {[%clk 0:02:01]} 52. Bd1 {[%clk 0:00:06]}  Qe3+ {[%clk 0:01:59]} 53. Be2 {[%clk 0:00:00]}  Rb7 {[%clk 0:01:59]} 0-1


[Site "https://www.chess.com"]

[Event "Titled Tuesday Blitz June 13 Early 2023"]
[White "Georg, Heinz"]
[Black "Osuna Vega, Enrique"]
[WhiteFideId "4607295"]
[BlackFideId "2219549"]
[WhiteElo "2292"]
[BlackElo "2170"]
[Result "1-0"]
[Round "10"]
[TimeControl "180+2"]
[Date "2023.06.13"]
[WhiteClock "0:00:06"]
[BlackClock "0:00:00"]
[Board "149"]

1. e4 {[%clk 0:03:00]}  d6 {[%clk 0:02:59]} 2. d4 {[%clk 0:02:59]}  Nf6 {[%clk 0:02:59]} 3. Nc3 {[%clk 0:02:59]}  e5 {[%clk 0:03:00]} 4. Nf3 {[%clk 0:02:58]}  Nbd7 {[%clk 0:03:00]} 5. Bc4 {[%clk 0:02:57]}  Be7 {[%clk 0:02:59]} 6. O-O {[%clk 0:02:56]}  O-O {[%clk 0:02:59]} 7. h3 {[%clk 0:02:56]}  c6 {[%clk 0:02:59]} 8. a4 {[%clk 0:02:55]}  a5 {[%clk 0:03:00]} 9. Be3 {[%clk 0:02:51]}  Nb6 {[%clk 0:02:59]} 10. Bb3 {[%clk 0:02:51]}  Nfd7 {[%clk 0:02:58]} 11. d5 {[%clk 0:02:35]}  cxd5 {[%clk 0:02:53]} 12. Nxd5 {[%clk 0:02:34]}  Nxd5 {[%clk 0:02:50]} 13. Bxd5 {[%clk 0:02:33]}  Nb6 {[%clk 0:02:41]} 14. Bb3 {[%clk 0:02:31]}  Qc7 {[%clk 0:02:39]} 15. Qd3 {[%clk 0:02:24]}  Bd7 {[%clk 0:02:28]} 16. Rfd1 {[%clk 0:02:19]}  Rac8 {[%clk 0:02:27]} 17. Bxb6 {[%clk 0:02:08]}  Qxb6 {[%clk 0:02:26]} 18. Nxe5 {[%clk 0:02:05]}  dxe5 {[%clk 0:02:04]} 19. Qxd7 {[%clk 0:02:04]}  Bc5 {[%clk 0:01:58]} 20. Qf5 {[%clk 0:01:38]}  Bd4 {[%clk 0:01:46]} 21. Rab1 {[%clk 0:01:37]}  Qg6 {[%clk 0:01:30]} 22. c3 {[%clk 0:01:21]}  Qxf5 {[%clk 0:01:20]} 23. exf5 {[%clk 0:01:22]}  Bc5 {[%clk 0:01:17]} 24. Rd5 {[%clk 0:01:15]}  b6 {[%clk 0:01:07]} 25. Rxe5 {[%clk 0:01:10]}  Rcd8 {[%clk 0:01:00]} 26. Re2 {[%clk 0:01:09]}  Rfe8 {[%clk 0:00:48]} 27. Rbe1 {[%clk 0:00:51]}  Kf8 {[%clk 0:00:46]} 28. g4 {[%clk 0:00:49]}  Rxe2 {[%clk 0:00:37]} 29. Rxe2 {[%clk 0:00:49]}  Re8 {[%clk 0:00:36]} 30. Rd2 {[%clk 0:00:37]}  Re1+ {[%clk 0:00:35]} 31. Kg2 {[%clk 0:00:37]}  Ke7 {[%clk 0:00:36]} 32. Kf3 {[%clk 0:00:26]}  g6 {[%clk 0:00:32]} 33. fxg6 {[%clk 0:00:21]}  fxg6 {[%clk 0:00:30]} 34. Re2+ {[%clk 0:00:18]}  Rxe2 {[%clk 0:00:30]} 35. Kxe2 {[%clk 0:00:18]}  g5 {[%clk 0:00:29]} 36. f3 {[%clk 0:00:17]}  h6 {[%clk 0:00:27]} 37. Kd3 {[%clk 0:00:17]}  Kd6 {[%clk 0:00:26]} 38. Ke4 {[%clk 0:00:17]}  Ke7 {[%clk 0:00:19]} 39. f4 {[%clk 0:00:17]}  gxf4 {[%clk 0:00:19]} 40. Kxf4 {[%clk 0:00:18]}  Kf6 {[%clk 0:00:19]} 41. Bd5 {[%clk 0:00:15]}  Bd6+ {[%clk 0:00:19]} 42. Ke4 {[%clk 0:00:14]}  Bc5 {[%clk 0:00:17]} 43. b3 {[%clk 0:00:14]}  Bf2 {[%clk 0:00:16]} 44. Kd3 {[%clk 0:00:13]}  Ke5 {[%clk 0:00:15]} 45. Bc6 {[%clk 0:00:12]}  Bc5 {[%clk 0:00:14]} 46. Kc4 {[%clk 0:00:11]}  Kd6 {[%clk 0:00:12]} 47. Be8 {[%clk 0:00:10]}  Ke7 {[%clk 0:00:11]} 48. Bh5 {[%clk 0:00:10]}  Kd6 {[%clk 0:00:11]} 49. b4 {[%clk 0:00:09]}  axb4 {[%clk 0:00:11]} 50. cxb4 {[%clk 0:00:10]}  Be3 {[%clk 0:00:11]} 51. Kb5 {[%clk 0:00:09]}  Kc7 {[%clk 0:00:10]} 52. Bg6 {[%clk 0:00:09]}  Bg5 {[%clk 0:00:09]} 53. Bf5 {[%clk 0:00:09]}  Bf6 {[%clk 0:00:08]} 54. a5 {[%clk 0:00:09]}  bxa5 {[%clk 0:00:08]} 55. Kxa5 {[%clk 0:00:09]}  Kb8 {[%clk 0:00:07]} 56. Kb6 {[%clk 0:00:09]}  Bg5 {[%clk 0:00:06]} 57. b5 {[%clk 0:00:09]}  Bf6 {[%clk 0:00:06]} 58. Kc6 {[%clk 0:00:08]}  Bg5 {[%clk 0:00:05]} 59. Bd7 {[%clk 0:00:08]}  Bh4 {[%clk 0:00:04]} 60. Kd5 {[%clk 0:00:08]}  Kc7 {[%clk 0:00:04]} 61. Bc6 {[%clk 0:00:08]}  Bf2 {[%clk 0:00:02]} 62. Ke6 {[%clk 0:00:07]}  Kd8 {[%clk 0:00:02]} 63. Kf6 {[%clk 0:00:06]}  Be3 {[%clk 0:00:02]} 64. h4 {[%clk 0:00:06]}  Kc7 {[%clk 0:00:02]} 65. g5 {[%clk 0:00:06]}  hxg5 {[%clk 0:00:02]} 66. hxg5 {[%clk 0:00:06]}  Kd8 {[%clk 0:00:00]} 67. g6 {[%clk 0:00:06]} 1-0


[Site "https://www.chess.com"]

[Event "Titled Tuesday Blitz June 13 Early 2023"]
[White "babbilator"]
[Black "Kiseljova, Marya"]
[BlackFideId "4155009"]
[WhiteElo "2273"]
[BlackElo "1831"]
[Result "1-0"]
[Round "10"]
[TimeControl "180+2"]
[Date "2023.06.13"]
[WhiteClock "0:00:43"]
[BlackClock "0:01:14"]
[Board "150"]

1. e4 {[%clk 0:02:56]}  c5 {[%clk 0:03:00]} 2. Nc3 {[%clk 0:02:56]}  Nc6 {[%clk 0:03:00]} 3. Nf3 {[%clk 0:02:57]}  g6 {[%clk 0:03:00]} 4. Bc4 {[%clk 0:02:56]}  Bg7 {[%clk 0:03:00]} 5. O-O {[%clk 0:02:57]}  e6 {[%clk 0:03:00]} 6. d4 {[%clk 0:02:57]}  Nxd4 {[%clk 0:02:53]} 7. Nxd4 {[%clk 0:02:57]}  Bxd4 {[%clk 0:02:53]} 8. Nb5 {[%clk 0:02:57]}  d5 {[%clk 0:02:30]} 9. exd5 {[%clk 0:02:45]}  exd5 {[%clk 0:02:31]} 10. Bxd5 {[%clk 0:02:27]}  a6 {[%clk 0:02:15]} 11. Qf3 {[%clk 0:02:03]}  Nf6 {[%clk 0:01:52]} 12. Re1+ {[%clk 0:01:16]}  Kf8 {[%clk 0:01:46]} 13. Nxd4 {[%clk 0:00:50]}  Qxd5 {[%clk 0:01:28]} 14. Bh6+ {[%clk 0:00:46]}  Kg8 {[%clk 0:01:24]} 15. Qxf6 {[%clk 0:00:43]}  Bg4 {[%clk 0:01:14]} 1-0


[Site "https://www.chess.com"]